[Event "Titled Tuesday Blitz February 07 Late 2023"]
[White "Haydon, David L"]
[Black "Flynn, Jacob"]
[WhiteFideId "415405"]
[BlackFideId "2509393"]
[WhiteElo "2253"]
[BlackElo "2102"]
[Result "0-1"]
[Round "08"]
[TimeControl "180+2"]
[Date "2023.02.07"]
[WhiteClock "0:01:08"]
[BlackClock "0:00:58"]

1. d4 {[%clk 0:03:00]}  Nf6 {[%clk 0:02:59]} 2. c4 {[%clk 0:02:58]}  e6 {[%clk 0:03:00]} 3. Nf3 {[%clk 0:02:58]}  d5 {[%clk 0:02:59]} 4. g3 {[%clk 0:02:59]}  Be7 {[%clk 0:02:56]} 5. Bg2 {[%clk 0:02:59]}  O-O {[%clk 0:02:57]} 6. O-O {[%clk 0:02:59]}  dxc4 {[%clk 0:02:55]} 7. Qc2 {[%clk 0:03:00]}  a6 {[%clk 0:02:55]} 8. a4 {[%clk 0:02:59]}  Bd7 {[%clk 0:02:54]} 9. Ne5 {[%clk 0:02:56]}  Bc6 {[%clk 0:02:50]} 10. Nxc6 {[%clk 0:02:53]}  Nxc6 {[%clk 0:02:50]} 11. Bxc6 {[%clk 0:02:52]}  bxc6 {[%clk 0:02:50]} 12. Qxc4 {[%clk 0:02:52]}  Qd5 {[%clk 0:02:47]} 13. Qd3 {[%clk 0:02:49]}  Rfd8 {[%clk 0:02:27]} 14. Rd1 {[%clk 0:02:47]}  c5 {[%clk 0:02:15]} 15. Qc2 {[%clk 0:02:46]}  cxd4 {[%clk 0:02:11]} 16. Qxc7 {[%clk 0:02:45]}  Rd7 {[%clk 0:02:01]} 17. Qc2 {[%clk 0:02:44]}  e5 {[%clk 0:01:59]} 18. Bg5 {[%clk 0:02:38]}  Qe6 {[%clk 0:01:56]} 19. Bxf6 {[%clk 0:02:36]}  Bxf6 {[%clk 0:01:54]} 20. Nd2 {[%clk 0:02:35]}  g6 {[%clk 0:01:50]} 21. b4 {[%clk 0:02:32]}  Rb8 {[%clk 0:01:47]} 22. Rab1 {[%clk 0:02:29]}  Rdb7 {[%clk 0:01:46]} 23. Ne4 {[%clk 0:01:58]}  Rxb4 {[%clk 0:01:40]} 24. Rxb4 {[%clk 0:01:54]}  Rxb4 {[%clk 0:01:40]} 25. Rc1 {[%clk 0:01:49]}  Kg7 {[%clk 0:01:24]} 26. Qc7 {[%clk 0:01:40]}  Qb6 {[%clk 0:01:10]} 27. Qd7 {[%clk 0:01:36]}  Rb1 {[%clk 0:01:06]} 28. Nd6 {[%clk 0:01:07]}  Rxc1+ {[%clk 0:00:58]} 29. Kg2 {[%clk 0:01:06]}  Qc6+ {[%clk 0:00:58]} 30. Qxc6 {[%clk 0:01:07]}  Rxc6 {[%clk 0:00:59]} 31. Ne8+ {[%clk 0:01:07]}  Kf8 {[%clk 0:00:58]} 32. Nxf6 {[%clk 0:01:08]}  Rxf6 {[%clk 0:00:58]} 0-1


[Site "https://www.chess.com"]

[Event "Titled Tuesday Blitz February 07 Late 2023"]
[White "Chor, Kevin"]
[Black "Estrada Nieto, Julian"]
[WhiteFideId "2090740"]
[BlackFideId "5101018"]
[WhiteElo "1944"]
[BlackElo "2215"]
[Result "1/2-1/2"]
[Round "08"]
[TimeControl "180+2"]
[Date "2023.02.07"]
[WhiteClock "0:02:35"]
[BlackClock "0:02:41"]

1. e4 {[%clk 0:03:00]}  e5 {[%clk 0:02:59]} 2. Nf3 {[%clk 0:02:58]}  Nc6 {[%clk 0:03:00]} 3. Bb5 {[%clk 0:02:57]}  a6 {[%clk 0:03:00]} 4. Ba4 {[%clk 0:02:57]}  Nf6 {[%clk 0:03:01]} 5. O-O {[%clk 0:02:57]}  Be7 {[%clk 0:03:01]} 6. Re1 {[%clk 0:02:57]}  b5 {[%clk 0:03:01]} 7. Bb3 {[%clk 0:02:56]}  d6 {[%clk 0:03:01]} 8. c3 {[%clk 0:02:55]}  O-O {[%clk 0:03:01]} 9. d4 {[%clk 0:02:50]}  Bb7 {[%clk 0:03:00]} 10. Nbd2 {[%clk 0:02:43]}  Re8 {[%clk 0:02:41]} 11. Ng5 {[%clk 0:02:35]}  Rf8 {[%clk 0:02:41]} 12. Ngf3 {[%clk 0:02:34]}  Re8 {[%clk 0:02:41]} 13. Ng5 {[%clk 0:02:34]}  Rf8 {[%clk 0:02:41]} 14. Ngf3 {[%clk 0:02:35]} 1/2-1/2


[Site "https://www.chess.com"]

[Event "Titled Tuesday Blitz February 07 Late 2023"]
[White "Kleiman, Jake"]
[Black "Nilsen, Tobias Lang"]
[WhiteFideId "2020041"]
[BlackFideId "1521624"]
[WhiteElo "2399"]
[BlackElo "2247"]
[Result "1-0"]
[Round "08"]
[TimeControl "180+2"]
[Date "2023.02.07"]
[WhiteClock "0:00:38"]
[BlackClock "0:01:15"]

1. Nf3 {[%clk 0:02:55]}  d5 {[%clk 0:02:59]} 2. g3 {[%clk 0:02:55]}  Nc6 {[%clk 0:02:59]} 3. Bg2 {[%clk 0:02:56]}  e5 {[%clk 0:02:59]} 4. O-O {[%clk 0:02:57]}  e4 {[%clk 0:02:59]} 5. Ne1 {[%clk 0:02:57]}  h5 {[%clk 0:03:00]} 6. d3 {[%clk 0:02:57]}  h4 {[%clk 0:03:00]} 7. dxe4 {[%clk 0:02:58]}  hxg3 {[%clk 0:03:01]} 8. hxg3 {[%clk 0:02:56]}  d4 {[%clk 0:02:50]} 9. e3 {[%clk 0:02:50]}  Bc5 {[%clk 0:02:48]} 10. exd4 {[%clk 0:02:49]}  Nxd4 {[%clk 0:02:49]} 11. c3 {[%clk 0:02:46]}  Nc6 {[%clk 0:02:47]} 12. Qxd8+ {[%clk 0:02:45]}  Nxd8 {[%clk 0:02:48]} 13. Nd3 {[%clk 0:02:44]}  Bb6 {[%clk 0:02:47]} 14. Nd2 {[%clk 0:02:42]}  Ne6 {[%clk 0:02:47]} 15. Nc4 {[%clk 0:02:42]}  Nf6 {[%clk 0:02:46]} 16. Nxb6 {[%clk 0:02:36]}  axb6 {[%clk 0:02:47]} 17. f4 {[%clk 0:02:31]}  Bd7 {[%clk 0:02:45]} 18. Ne5 {[%clk 0:02:16]}  Bb5 {[%clk 0:02:42]} 19. Rd1 {[%clk 0:02:16]}  Ke7 {[%clk 0:02:29]} 20. Be3 {[%clk 0:02:13]}  Rhd8 {[%clk 0:02:18]} 21. a3 {[%clk 0:02:12]}  Ba4 {[%clk 0:02:16]} 22. Rxd8 {[%clk 0:02:10]}  Rxd8 {[%clk 0:02:17]} 23. Kf2 {[%clk 0:01:59]}  Bc2 {[%clk 0:02:08]} 24. f5 {[%clk 0:01:52]}  Nf8 {[%clk 0:01:44]} 25. Bg5 {[%clk 0:01:41]}  Nh7 {[%clk 0:01:44]} 26. Bh4 {[%clk 0:01:23]}  Rd2+ {[%clk 0:01:40]} 27. Kg1 {[%clk 0:01:22]}  Bb3 {[%clk 0:01:36]} 28. Nf3 {[%clk 0:01:15]}  Re2 {[%clk 0:01:29]} 29. e5 {[%clk 0:01:12]}  Rxb2 {[%clk 0:01:19]} 30. Re1 {[%clk 0:01:05]}  Kd8 {[%clk 0:01:16]} 31. exf6 {[%clk 0:01:05]}  gxf6 {[%clk 0:01:17]} 32. Nd4 {[%clk 0:00:54]}  Bc4 {[%clk 0:01:17]} 33. Bxb7 {[%clk 0:00:39]}  Ra2 {[%clk 0:01:15]} 34. Bc6 {[%clk 0:00:38]} 1-0


[Site "https://www.chess.com"]

[Event "Titled Tuesday Blitz February 07 Late 2023"]
[White "Kalajzic, Ivan"]
[Black "Toncheva, Nadya"]
[WhiteFideId "14506378"]
[BlackFideId "2924056"]
[WhiteElo "2062"]
[BlackElo "2295"]
[Result "0-1"]
[Round "08"]
[TimeControl "180+2"]
[Date "2023.02.07"]
[WhiteClock "0:00:13"]
[BlackClock "0:00:21"]

1. d4 {[%clk 0:02:57]}  d5 {[%clk 0:03:00]} 2. Nc3 {[%clk 0:02:56]}  Nf6 {[%clk 0:02:59]} 3. Bg5 {[%clk 0:02:56]}  Nbd7 {[%clk 0:02:58]} 4. e3 {[%clk 0:02:56]}  c5 {[%clk 0:02:54]} 5. Nf3 {[%clk 0:02:55]}  e6 {[%clk 0:02:54]} 6. Bd3 {[%clk 0:02:53]}  h6 {[%clk 0:02:53]} 7. Bh4 {[%clk 0:02:53]}  Be7 {[%clk 0:02:53]} 8. O-O {[%clk 0:02:52]}  c4 {[%clk 0:02:53]} 9. Be2 {[%clk 0:02:52]}  O-O {[%clk 0:02:50]} 10. Ne5 {[%clk 0:02:46]}  Nxe5 {[%clk 0:02:48]} 11. dxe5 {[%clk 0:02:47]}  Nd7 {[%clk 0:02:48]} 12. Bxe7 {[%clk 0:02:47]}  Qxe7 {[%clk 0:02:49]} 13. f4 {[%clk 0:02:46]}  Nc5 {[%clk 0:02:46]} 14. Bf3 {[%clk 0:02:41]}  Bd7 {[%clk 0:02:45]} 15. Ne2 {[%clk 0:02:41]}  b5 {[%clk 0:02:43]} 16. b4 {[%clk 0:02:35]}  Na4 {[%clk 0:02:30]} 17. c3 {[%clk 0:02:34]}  a5 {[%clk 0:02:29]} 18. a3 {[%clk 0:02:33]}  Nb2 {[%clk 0:02:23]} 19. Qd2 {[%clk 0:02:27]}  Nd3 {[%clk 0:02:23]} 20. Nd4 {[%clk 0:02:23]}  Ra7 {[%clk 0:02:07]} 21. Be2 {[%clk 0:02:23]}  Rfa8 {[%clk 0:01:46]} 22. Bxd3 {[%clk 0:02:22]}  cxd3 {[%clk 0:01:47]} 23. Rab1 {[%clk 0:02:07]}  axb4 {[%clk 0:01:45]} 24. axb4 {[%clk 0:02:05]}  Be8 {[%clk 0:01:29]} 25. Qxd3 {[%clk 0:02:04]}  Qc7 {[%clk 0:01:27]} 26. Nb3 {[%clk 0:01:54]}  Ra2 {[%clk 0:01:20]} 27. Nc5 {[%clk 0:01:52]}  Bc6 {[%clk 0:01:07]} 28. Rbc1 {[%clk 0:01:44]}  d4 {[%clk 0:01:06]} 29. Rf2 {[%clk 0:01:30]}  dxe3 {[%clk 0:01:00]} 30. Qxe3 {[%clk 0:01:27]}  Qd8 {[%clk 0:00:55]} 31. Rcf1 {[%clk 0:01:14]}  Qd5 {[%clk 0:00:52]} 32. Qf3 {[%clk 0:00:59]}  Rxf2 {[%clk 0:00:47]} 33. Kxf2 {[%clk 0:00:45]}  Qd2+ {[%clk 0:00:29]} 34. Qe2 {[%clk 0:00:43]}  Qxf4+ {[%clk 0:00:28]} 35. Kg1 {[%clk 0:00:40]}  Qg5 {[%clk 0:00:27]} 36. h3 {[%clk 0:00:26]}  Bd5 {[%clk 0:00:27]} 37. Kh2 {[%clk 0:00:26]}  Ra2 {[%clk 0:00:27]} 38. Ne4 {[%clk 0:00:14]}  Rxe2 {[%clk 0:00:21]} 39. Nxg5 {[%clk 0:00:14]}  Rxg2+ {[%clk 0:00:21]} 40. Kh1 {[%clk 0:00:14]}  Rxg5+ {[%clk 0:00:21]} 41. Kh2 {[%clk 0:00:13]}  Rg2+ {[%clk 0:00:21]} 0-1


[Site "https://www.chess.com"]

[Event "Titled Tuesday Blitz February 07 Late 2023"]
[White "Gomes, Luiz Alexandre de Souza"]
[Black "Kochetov, Andrey"]
[WhiteFideId "2102790"]
[BlackFideId "24130532"]
[WhiteElo "2254"]
[BlackElo "2165"]
[Result "0-1"]
[Round "08"]
[TimeControl "180+2"]
[Date "2023.02.07"]
[WhiteClock "0:00:01"]
[BlackClock "0:00:05"]

1. e4 {[%clk 0:03:00]}  c5 {[%clk 0:02:57]} 2. Nf3 {[%clk 0:03:00]}  d6 {[%clk 0:02:57]} 3. d4 {[%clk 0:03:00]}  cxd4 {[%clk 0:02:58]} 4. Nxd4 {[%clk 0:03:00]}  Nf6 {[%clk 0:02:59]} 5. Nc3 {[%clk 0:03:01]}  Nc6 {[%clk 0:02:59]} 6. Be2 {[%clk 0:03:00]}  e5 {[%clk 0:02:56]} 7. Nb3 {[%clk 0:03:00]}  Be7 {[%clk 0:02:53]} 8. g4 {[%clk 0:02:58]}  h6 {[%clk 0:02:43]} 9. Rg1 {[%clk 0:02:56]}  Be6 {[%clk 0:02:42]} 10. h4 {[%clk 0:02:56]}  g6 {[%clk 0:02:40]} 11. g5 {[%clk 0:02:55]}  hxg5 {[%clk 0:02:40]} 12. hxg5 {[%clk 0:02:56]}  Nh7 {[%clk 0:02:29]} 13. Nd5 {[%clk 0:02:40]}  Bxg5 {[%clk 0:02:13]} 14. Bxg5 {[%clk 0:02:38]}  Nxg5 {[%clk 0:02:14]} 15. Qd3 {[%clk 0:02:19]}  Rh3 {[%clk 0:01:44]} 16. f3 {[%clk 0:02:12]}  Rc8 {[%clk 0:01:20]} 17. O-O-O {[%clk 0:01:59]}  Kf8 {[%clk 0:01:09]} 18. Kb1 {[%clk 0:01:58]}  Bxd5 {[%clk 0:01:01]} 19. Qxd5 {[%clk 0:01:56]}  Ne6 {[%clk 0:00:47]} 20. c3 {[%clk 0:01:50]}  Nf4 {[%clk 0:00:45]} 21. Qd2 {[%clk 0:01:25]}  Rh2 {[%clk 0:00:38]} 22. Rge1 {[%clk 0:01:24]}  Qh4 {[%clk 0:00:17]} 23. Qe3 {[%clk 0:01:22]}  Ng2 {[%clk 0:00:14]} 24. Qg1 {[%clk 0:00:55]}  Nxe1 {[%clk 0:00:14]} 25. Rxe1 {[%clk 0:00:55]}  Kg7 {[%clk 0:00:09]} 26. Bc4 {[%clk 0:00:55]}  Qf2 {[%clk 0:00:07]} 27. Qxf2 {[%clk 0:00:50]}  Rxf2 {[%clk 0:00:07]} 28. Re3 {[%clk 0:00:47]}  Rh8 {[%clk 0:00:07]} 29. Nc1 {[%clk 0:00:36]}  Rhh2 {[%clk 0:00:03]} 30. b4 {[%clk 0:00:28]}  Rb2+ {[%clk 0:00:03]} 31. Ka1 {[%clk 0:00:28]}  Rbc2 {[%clk 0:00:01]} 32. Kb1 {[%clk 0:00:25]}  Ne7 {[%clk 0:00:01]} 33. Bb3 {[%clk 0:00:20]}  Rcg2 {[%clk 0:00:01]} 34. Rd3 {[%clk 0:00:16]}  g5 {[%clk 0:00:02]} 35. Rxd6 {[%clk 0:00:15]}  Ng6 {[%clk 0:00:02]} 36. Rd7 {[%clk 0:00:14]}  Nh8 {[%clk 0:00:02]} 37. c4 {[%clk 0:00:12]}  Rf2 {[%clk 0:00:03]} 38. c5 {[%clk 0:00:12]}  Rxf3 {[%clk 0:00:04]} 39. Rxb7 {[%clk 0:00:11]}  g4 {[%clk 0:00:04]} 40. c6 {[%clk 0:00:09]}  g3 {[%clk 0:00:05]} 41. c7 {[%clk 0:00:05]}  Rc3 {[%clk 0:00:06]} 42. c8=Q {[%clk 0:00:01]}  Rxc8 {[%clk 0:00:05]} 43. Nd3 {[%clk 0:00:01]}  g2 {[%clk 0:00:05]} 0-1


[Site "https://www.chess.com"]

[Event "Titled Tuesday Blitz February 07 Late 2023"]
[White "Toktomushev, Teimur"]
[Black "Yeritsyan, Hayk"]
[WhiteFideId "14176726"]
[BlackFideId "13307320"]
[WhiteElo "2239"]
[BlackElo "2241"]
[Result "1/2-1/2"]
[Round "08"]
[TimeControl "180+2"]
[Date "2023.02.07"]
[WhiteClock "0:00:04"]
[BlackClock "0:01:02"]

1. d4 {[%clk 0:02:59]}  d5 {[%clk 0:02:59]} 2. c4 {[%clk 0:03:00]}  c6 {[%clk 0:02:52]} 3. Nc3 {[%clk 0:02:59]}  Nf6 {[%clk 0:02:52]} 4. e3 {[%clk 0:02:59]}  e6 {[%clk 0:02:52]} 5. Nf3 {[%clk 0:02:59]}  Bd6 {[%clk 0:02:52]} 6. Bd3 {[%clk 0:02:59]}  Nbd7 {[%clk 0:02:51]} 7. e4 {[%clk 0:02:59]}  dxc4 {[%clk 0:02:51]} 8. Bxc4 {[%clk 0:02:59]}  e5 {[%clk 0:02:51]} 9. O-O {[%clk 0:02:57]}  Qe7 {[%clk 0:02:31]} 10. h3 {[%clk 0:01:48]}  h6 {[%clk 0:02:29]} 11. Be3 {[%clk 0:01:08]}  O-O {[%clk 0:02:26]} 12. Nh4 {[%clk 0:01:08]}  Nb6 {[%clk 0:02:17]} 13. Ng6 {[%clk 0:00:46]}  Qc7 {[%clk 0:02:09]} 14. Bb3 {[%clk 0:00:30]}  Re8 {[%clk 0:02:03]} 15. dxe5 {[%clk 0:00:17]}  Bxe5 {[%clk 0:02:01]} 16. Nxe5 {[%clk 0:00:17]}  Qxe5 {[%clk 0:02:02]} 17. f4 {[%clk 0:00:16]}  Qe7 {[%clk 0:02:00]} 18. Bxb6 {[%clk 0:00:12]}  axb6 {[%clk 0:01:59]} 19. e5 {[%clk 0:00:12]}  Nd7 {[%clk 0:01:56]} 20. Bc2 {[%clk 0:00:07]}  Nc5 {[%clk 0:01:55]} 21. Qe2 {[%clk 0:00:05]}  Be6 {[%clk 0:01:51]} 22. f5 {[%clk 0:00:03]}  Bd7 {[%clk 0:01:50]} 23. Rae1 {[%clk 0:00:03]}  Rad8 {[%clk 0:01:47]} 24. f6 {[%clk 0:00:04]}  gxf6 {[%clk 0:01:46]} 25. Qh5 {[%clk 0:00:03]}  f5 {[%clk 0:01:40]} 26. Qxh6 {[%clk 0:00:03]}  Qe6 {[%clk 0:01:39]} 27. Qf4 {[%clk 0:00:02]}  Qg6 {[%clk 0:01:37]} 28. Rf3 {[%clk 0:00:02]}  Kf8 {[%clk 0:01:34]} 29. Rg3 {[%clk 0:00:03]}  Qh7 {[%clk 0:01:34]} 30. Rf1 {[%clk 0:00:02]}  Be6 {[%clk 0:01:35]} 31. Bxf5 {[%clk 0:00:01]}  Bxf5 {[%clk 0:01:34]} 32. Qxf5 {[%clk 0:00:02]}  Qxf5 {[%clk 0:01:35]} 33. Rxf5 {[%clk 0:00:03]}  Ne6 {[%clk 0:01:34]} 34. Rgf3 {[%clk 0:00:03]}  Rd7 {[%clk 0:01:34]} 35. Ne4 {[%clk 0:00:03]}  Nd4 {[%clk 0:01:34]} 36. Ng5 {[%clk 0:00:02]}  Nxf3+ {[%clk 0:01:33]} 37. gxf3 {[%clk 0:00:02]}  Kg7 {[%clk 0:01:32]} 38. Kg2 {[%clk 0:00:02]}  Rh8 {[%clk 0:01:29]} 39. f4 {[%clk 0:00:01]}  c5 {[%clk 0:01:27]} 40. Kg3 {[%clk 0:00:02]}  Rd3+ {[%clk 0:01:26]} 41. Kg4 {[%clk 0:00:02]}  Rd7 {[%clk 0:01:27]} 42. e6 {[%clk 0:00:02]}  fxe6 {[%clk 0:01:27]} 43. Nxe6+ {[%clk 0:00:03]}  Kg8 {[%clk 0:01:24]} 44. Rf8+ {[%clk 0:00:03]}  Kh7 {[%clk 0:01:24]} 45. Ng5+ {[%clk 0:00:04]}  Kg7 {[%clk 0:01:23]} 46. Ne6+ {[%clk 0:00:03]}  Kh7 {[%clk 0:01:22]} 47. Ng5+ {[%clk 0:00:03]}  Kg7 {[%clk 0:01:22]} 48. Ne6+ {[%clk 0:00:04]}  Kh7 {[%clk 0:01:02]} 1/2-1/2


[Site "https://www.chess.com"]

[Event "Titled Tuesday Blitz February 07 Late 2023"]
[White "Harish, Neeraj"]
[Black "Marczuk, Dominik"]
[WhiteFideId "30958130"]
[BlackFideId "1111264"]
[WhiteElo "2232"]
[BlackElo "2253"]
[Result "1-0"]
[Round "08"]
[TimeControl "180+2"]
[Date "2023.02.07"]
[WhiteClock "0:00:10"]
[BlackClock "0:00:01"]

1. e4 {[%clk 0:03:00]}  c5 {[%clk 0:02:59]} 2. Nf3 {[%clk 0:02:59]}  d6 {[%clk 0:03:00]} 3. d4 {[%clk 0:02:59]}  cxd4 {[%clk 0:03:01]} 4. Nxd4 {[%clk 0:03:00]}  Nf6 {[%clk 0:03:01]} 5. Nc3 {[%clk 0:03:00]}  a6 {[%clk 0:03:02]} 6. Be3 {[%clk 0:03:00]}  e5 {[%clk 0:03:02]} 7. Nb3 {[%clk 0:02:59]}  Be7 {[%clk 0:03:01]} 8. f3 {[%clk 0:02:58]}  Be6 {[%clk 0:03:02]} 9. Qd2 {[%clk 0:02:58]}  O-O {[%clk 0:03:02]} 10. O-O-O {[%clk 0:02:57]}  Qc7 {[%clk 0:03:02]} 11. Kb1 {[%clk 0:02:55]}  Rc8 {[%clk 0:03:02]} 12. g4 {[%clk 0:02:51]}  d5 {[%clk 0:03:02]} 13. g5 {[%clk 0:02:19]}  d4 {[%clk 0:02:55]} 14. gxf6 {[%clk 0:02:08]}  dxe3 {[%clk 0:02:55]} 15. Qxe3 {[%clk 0:02:07]}  Bxf6 {[%clk 0:02:56]} 16. Bd3 {[%clk 0:02:05]}  Nc6 {[%clk 0:02:52]} 17. Rhg1 {[%clk 0:01:57]}  g6 {[%clk 0:02:34]} 18. Nd5 {[%clk 0:01:53]}  Bxd5 {[%clk 0:02:32]} 19. exd5 {[%clk 0:01:54]}  Nb4 {[%clk 0:02:18]} 20. d6 {[%clk 0:01:26]}  Qd8 {[%clk 0:01:20]} 21. Be4 {[%clk 0:01:19]}  a5 {[%clk 0:01:01]} 22. c3 {[%clk 0:00:59]}  Nc6 {[%clk 0:00:58]} 23. Nc5 {[%clk 0:00:58]}  b6 {[%clk 0:00:44]} 24. d7 {[%clk 0:00:50]}  Rc7 {[%clk 0:00:38]} 25. Nb7 {[%clk 0:00:45]}  Qf8 {[%clk 0:00:22]} 26. Qxb6 {[%clk 0:00:33]}  Bd8 {[%clk 0:00:05]} 27. Nxd8 {[%clk 0:00:24]}  Qxd8 {[%clk 0:00:05]} 28. Bxc6 {[%clk 0:00:20]}  Rb8 {[%clk 0:00:05]} 29. Qc5 {[%clk 0:00:17]}  Qf6 {[%clk 0:00:04]} 30. Qd6 {[%clk 0:00:15]}  Qd8 {[%clk 0:00:01]} 31. Qxe5 {[%clk 0:00:10]}  Rxc6 {[%clk 0:00:01]} 32. Qxb8 {[%clk 0:00:10]}  Qxb8 {[%clk 0:00:01]} 33. d8=Q+ {[%clk 0:00:11]}  Kg7 {[%clk 0:00:01]} 34. Qxb8 {[%clk 0:00:10]} 1-0


[Site "https://www.chess.com"]

[Event "Titled Tuesday Blitz February 07 Late 2023"]
[White "Aguilar, Juan"]
[Black "Czopor, Maciej"]
[WhiteFideId "3800091"]
[BlackFideId "21805431"]
[WhiteElo "2254"]
[BlackElo "2385"]
[Result "0-1"]
[Round "08"]
[TimeControl "180+2"]
[Date "2023.02.07"]
[WhiteClock "0:01:28"]
[BlackClock "0:01:54"]

1. Nf3 {[%clk 0:03:00]}  Nf6 {[%clk 0:02:53]} 2. g3 {[%clk 0:03:01]}  g6 {[%clk 0:02:49]} 3. Bg2 {[%clk 0:03:01]}  Bg7 {[%clk 0:02:50]} 4. O-O {[%clk 0:03:01]}  O-O {[%clk 0:02:51]} 5. d3 {[%clk 0:03:02]}  d5 {[%clk 0:02:46]} 6. Nbd2 {[%clk 0:03:02]}  c5 {[%clk 0:02:44]} 7. e4 {[%clk 0:03:01]}  Nc6 {[%clk 0:02:44]} 8. c3 {[%clk 0:03:00]}  Bg4 {[%clk 0:02:41]} 9. h3 {[%clk 0:02:56]}  Bxf3 {[%clk 0:02:41]} 10. Qxf3 {[%clk 0:02:52]}  d4 {[%clk 0:02:39]} 11. Qe2 {[%clk 0:02:44]}  e5 {[%clk 0:02:30]} 12. f4 {[%clk 0:02:36]}  Nh5 {[%clk 0:02:27]} 13. Qf3 {[%clk 0:02:27]}  dxc3 {[%clk 0:02:25]} 14. bxc3 {[%clk 0:02:26]}  exf4 {[%clk 0:02:25]} 15. gxf4 {[%clk 0:02:24]}  Bxc3 {[%clk 0:02:24]} 16. Rb1 {[%clk 0:02:23]}  Bd4+ {[%clk 0:02:22]} 17. Kh2 {[%clk 0:02:21]}  Nxf4 {[%clk 0:02:21]} 18. Rxb7 {[%clk 0:02:17]}  Nxd3 {[%clk 0:02:14]} 19. Nc4 {[%clk 0:01:45]}  Nce5 {[%clk 0:02:01]} 20. Nxe5 {[%clk 0:01:43]}  Bxe5+ {[%clk 0:02:02]} 21. Kh1 {[%clk 0:01:43]}  Nxc1 {[%clk 0:02:02]} 22. Rxc1 {[%clk 0:01:42]}  Rc8 {[%clk 0:01:56]} 23. Bf1 {[%clk 0:01:28]}  Qd2 {[%clk 0:01:54]} 0-1


[Site "https://www.chess.com"]

[Event "Titled Tuesday Blitz February 07 Late 2023"]
[White "Haszon, David"]
[Black "Cori T., Deysi"]
[WhiteFideId "733610"]
[BlackFideId "3801934"]
[WhiteElo "2264"]
[BlackElo "2362"]
[Result "0-1"]
[Round "08"]
[TimeControl "180+2"]
[Date "2023.02.07"]
[WhiteClock "0:00:05"]
[BlackClock "0:01:12"]

1. e4 {[%clk 0:03:00]}  e6 {[%clk 0:02:59]} 2. d4 {[%clk 0:02:52]}  d5 {[%clk 0:03:00]} 3. Nd2 {[%clk 0:02:46]}  c5 {[%clk 0:02:57]} 4. exd5 {[%clk 0:02:42]}  Qxd5 {[%clk 0:02:58]} 5. Ngf3 {[%clk 0:02:42]}  cxd4 {[%clk 0:02:58]} 6. Bc4 {[%clk 0:02:31]}  Qd6 {[%clk 0:02:58]} 7. O-O {[%clk 0:02:29]}  Nf6 {[%clk 0:02:58]} 8. Nb3 {[%clk 0:02:22]}  Nc6 {[%clk 0:02:58]} 9. Nbxd4 {[%clk 0:02:09]}  Nxd4 {[%clk 0:02:57]} 10. Nxd4 {[%clk 0:02:08]}  Qc7 {[%clk 0:02:57]} 11. Bb5+ {[%clk 0:02:03]}  Bd7 {[%clk 0:02:57]} 12. c3 {[%clk 0:02:01]}  a6 {[%clk 0:02:55]} 13. Bxd7+ {[%clk 0:01:57]}  Qxd7 {[%clk 0:02:55]} 14. Re1 {[%clk 0:01:40]}  Be7 {[%clk 0:02:55]} 15. Qf3 {[%clk 0:01:38]}  O-O {[%clk 0:02:54]} 16. Bf4 {[%clk 0:01:31]}  Nd5 {[%clk 0:02:51]} 17. Be5 {[%clk 0:01:19]}  Bf6 {[%clk 0:02:51]} 18. Rad1 {[%clk 0:01:18]}  Qc8 {[%clk 0:02:47]} 19. Bxf6 {[%clk 0:01:04]}  Nxf6 {[%clk 0:02:47]} 20. g3 {[%clk 0:01:02]}  Rd8 {[%clk 0:02:46]} 21. b3 {[%clk 0:01:01]}  Qc5 {[%clk 0:02:36]} 22. Nc2 {[%clk 0:00:54]}  b5 {[%clk 0:02:30]} 23. Nb4 {[%clk 0:00:37]}  a5 {[%clk 0:02:09]} 24. Nc6 {[%clk 0:00:34]}  Rdc8 {[%clk 0:02:04]} 25. Ne5 {[%clk 0:00:21]}  Ra7 {[%clk 0:01:48]} 26. c4 {[%clk 0:00:20]}  Rac7 {[%clk 0:01:44]} 27. cxb5 {[%clk 0:00:20]}  Qxb5 {[%clk 0:01:43]} 28. Nc4 {[%clk 0:00:19]}  Qc5 {[%clk 0:01:38]} 29. Nd6 {[%clk 0:00:18]}  Rf8 {[%clk 0:01:38]} 30. Nc4 {[%clk 0:00:17]}  a4 {[%clk 0:01:36]} 31. Ne5 {[%clk 0:00:15]}  a3 {[%clk 0:01:35]} 32. Nc4 {[%clk 0:00:14]}  h6 {[%clk 0:01:35]} 33. Qe3 {[%clk 0:00:12]}  Qb4 {[%clk 0:01:35]} 34. Qd2 {[%clk 0:00:12]}  Qe7 {[%clk 0:01:34]} 35. Qd6 {[%clk 0:00:12]}  Nd5 {[%clk 0:01:34]} 36. Rxd5 {[%clk 0:00:10]}  Rfc8 {[%clk 0:01:26]} 37. Qxe7 {[%clk 0:00:09]}  Rxe7 {[%clk 0:01:26]} 38. Ra5 {[%clk 0:00:09]}  Rd7 {[%clk 0:01:24]} 39. Rxa3 {[%clk 0:00:10]}  Rd3 {[%clk 0:01:23]} 40. Ra7 {[%clk 0:00:06]}  Rcd8 {[%clk 0:01:21]} 41. Re2 {[%clk 0:00:06]}  Rd1+ {[%clk 0:01:21]} 42. Kg2 {[%clk 0:00:07]}  Ra1 {[%clk 0:01:22]} 43. b4 {[%clk 0:00:07]}  Rdd1 {[%clk 0:01:22]} 44. Rb7 {[%clk 0:00:07]}  g5 {[%clk 0:01:21]} 45. h3 {[%clk 0:00:06]}  h5 {[%clk 0:01:21]} 46. g4 {[%clk 0:00:06]}  hxg4 {[%clk 0:01:21]} 47. hxg4 {[%clk 0:00:07]}  Rg1+ {[%clk 0:01:21]} 48. Kf3 {[%clk 0:00:07]}  Rac1 {[%clk 0:01:21]} 49. Nd6 {[%clk 0:00:06]}  Rc3+ {[%clk 0:01:19]} 50. Re3 {[%clk 0:00:06]}  Rc2 {[%clk 0:01:19]} 51. Nxf7 {[%clk 0:00:03]}  Rf1 {[%clk 0:01:17]} 52. Nxg5 {[%clk 0:00:03]}  Rfxf2+ {[%clk 0:01:17]} 53. Ke4 {[%clk 0:00:04]}  Rc4+ {[%clk 0:01:17]} 54. Ke5 {[%clk 0:00:04]}  Rxg4 {[%clk 0:01:16]} 55. Nxe6 {[%clk 0:00:04]}  Rh4 {[%clk 0:01:15]} 56. Kd6 {[%clk 0:00:05]}  Rd2+ {[%clk 0:01:14]} 57. Ke7 {[%clk 0:00:04]}  Rh7+ {[%clk 0:01:14]} 58. Ke8 {[%clk 0:00:05]}  Rxb7 {[%clk 0:01:13]} 59. Rg3+ {[%clk 0:00:05]}  Kh7 {[%clk 0:01:13]} 60. Rh3+ {[%clk 0:00:06]}  Kg6 {[%clk 0:01:12]} 61. Rg3+ {[%clk 0:00:06]}  Kf6 {[%clk 0:01:13]} 62. Nd8 {[%clk 0:00:05]}  Re7+ {[%clk 0:01:12]} 63. Kf8 {[%clk 0:00:05]}  Rxd8# {[%clk 0:01:12]} 0-1


[Site "https://www.chess.com"]